bitfinex-derivatives/quotes_BTCF0:USTF0_20220102
["timestamp","ask_amount","ask_price","bid_price","bid_amount"]
[1641101787217,0.02127722,46999.0,46995.0,1.46612436]
[1641101788316,0.02127722,46999.0,46995.0,1.191504]
[1641101788520,0.02127722,46999.0,46997.0,0.83416354]
[1641101789118,0.02127722,46999.0,46996.0,0.83416354]
[1641101792121,0.8437916,47003.0,46996.0,0.83416354]
[1641101792523,0.86506733,47003.0,46996.0,0.83416354]
[1641101793025,0.8437916,47003.0,47002.0,0.18]
[1641101793226,0.02127398,47007.0,47002.0,0.18]
[1641101793424,0.02127398,47007.0,47005.0,0.18]
[1641101793624,0.09069614,47003.0,47000.0,0.18]
[1641101794024,0.02127398,47007.0,47001.0,0.27462036]
[1641101794225,1.32807551,47013.0,47005.0,0.14033567]
[1641101794423,0.02127204,47011.0,47005.0,0.14033567]
[1641101796227,0.09068635,47010.0,47005.0,0.49745834]
[1641101796828,0.09068635,47010.0,47005.0,0.67745834]
[1641101797829,0.02127204,47011.0,47005.0,0.67745834]
[1641101798032,0.02127204,47011.0,47005.0,0.49745834]
[1641101798230,0.02127204,47011.0,47007.0,0.53712267]
[1641101798632,0.02127204,47011.0,47007.0,0.35712267]
[1641101798831,0.02127204,47011.0,47008.0,0.35712267]
[1641101800135,0.02127204,47011.0,47006.0,0.59510852]
[1641101800136,0.36236885,47009.0,47007.0,0.35712267]
[1641101801135,0.02127204,47011.0,47007.0,0.35712267]
[1641101801537,0.09068422,47010.0,47006.0,0.95223119]
[1641101801738,0.09068422,47010.0,47006.0,0.35712267]
[1641101801938,0.18,47009.0,47001.0,1.191504]
[1641101802138,0.14033567,47003.0,47001.0,1.191504]
[1641101802339,0.14033567,47003.0,47001.0,0.59545044]
[1641101803641,0.14033567,47003.0,46998.0,1.191504]
[1641101803940,0.14033567,47003.0,46996.0,0.97396629]
[1641101804341,0.0906982,47002.0,46996.0,0.97396629]
[1641101804540,0.1494682,47002.0,46996.0,0.97396629]
[1641101805142,0.05877,47002.0,46997.0,0.29621443]
[1641101805654,0.05877,47002.0,46997.0,1.12984505]
[1641101807459,0.86690523,46999.0,46998.0,1.191504]
[1641101808658,0.02127723,46999.0,46998.0,1.191504]
[1641101808860,0.11197463,46999.0,46997.0,0.29621443]
[1641101809560,0.0906974,46998.0,46997.0,0.29621443]
[1641101810161,0.02127723,46999.0,46996.0,0.14033567]
[1641101811071,0.09069665,46998.0,46997.0,1.46683139]
[1641101811566,0.86758119,46999.0,46997.0,1.46683139]
[1641101813771,0.09069665,46998.0,46997.0,1.46683139]
[1641101814169,0.29197584,46998.0,46997.0,1.46683139]
[1641101814369,1.27861547,46998.0,46997.0,1.46683139]
[1641101814970,0.43231151,46998.0,46997.0,1.46683139]
[1641101815170,0.43231151,46998.0,46997.0,1.19306221]
[1641101815372,0.43231151,46998.0,46996.0,0.59726061]
[1641101816373,1.42060287,46997.0,46994.0,0.59726061]
[1641101817174,1.32990622,46997.0,46994.0,0.59726061]
[1641101817574,1.32990622,46997.0,46996.0,0.35857098]
[1641101818276,1.32990622,46997.0,46995.0,0.35857098]
[1641101819279,1.3961504,46997.0,46995.0,0.35857098]
[1641101820582,1.48684705,46997.0,46995.0,0.35857098]
[1641101820784,1.42060287,46997.0,46995.0,0.35857098]
[1641101821383,1.32990622,46997.0,46995.0,0.35857098]
[1641101826092,1.54097941,46998.0,46996.0,0.35857098]
[1641101826292,0.14033567,46997.0,46996.0,0.35857098]
[1641101827594,0.23103232,46997.0,46996.0,0.35857098]
[1641101828896,0.23103232,46997.0,46993.0,0.35857098]
[1641101829796,0.60422339,46994.0,46993.0,0.35857098]
[1641101830497,0.60422339,46994.0,46992.0,0.35857098]
[1641101831100,0.36243157,46993.0,46991.0,0.35857098]
[1641101832000,0.36243157,46994.0,46991.0,0.35857098]
[1641101832799,0.36243157,46992.0,46990.0,0.35857098]
[1641101833399,0.36243157,46993.0,46991.0,0.35857098]
[1641101834199,0.36243157,46994.0,46991.0,0.35857098]
[1641101835400,0.36243157,46993.0,46990.0,0.35857098]
[1641101837202,0.36243157,46993.0,46991.0,0.35857098]
[1641101839121,0.36243157,46994.0,46991.0,0.35857098]
[1641101840123,0.36243157,46993.0,46990.0,0.35857098]
[1641101840926,0.36243157,46993.0,46991.0,0.35857098]
[1641101842327,0.36243157,46994.0,46991.0,0.35857098]
[1641101843025,0.96665496,46995.0,46992.0,0.35857098]
[1641101843224,0.36243157,46995.0,46992.0,0.35857098]
[1641101844227,0.36243157,46995.0,46993.0,0.35857098]
[1641101845529,0.02128272,46994.0,46992.0,0.35857098]
[1641101846630,0.60422339,46993.0,46990.0,0.35857098]
[1641101847230,0.36247137,46992.0,46990.0,0.35857098]
[1641101851134,0.02128272,46994.0,46989.0,0.25916756]
[1641101851334,0.84591274,46991.0,46990.0,1.19306221]
[1641101851832,0.84591274,46991.0,46989.0,0.25916756]
[1641101852033,0.60456791,46991.0,46989.0,0.25916756]
[1641101853434,1.45048065,46991.0,46989.0,0.25916756]
[1641101853635,0.60456791,46990.0,46989.0,0.25916756]
[1641101866057,0.68067791,46990.0,46989.0,0.25916756]
[1641101866256,0.69047191,46990.0,46989.0,0.25916756]
[1641101866856,0.83080758,46990.0,46989.0,0.25916756]
[1641101867256,0.83080758,46990.0,46986.0,1.31236843]
[1641101867455,0.20128589,46987.0,46986.0,1.31236843]
[1641101867655,0.20128589,46987.0,46983.0,1.43167465]
[1641101867856,0.18,46984.0,46982.0,1.31418545]
[1641101868658,0.18,46984.0,46978.0,1.43167465]
[1641101868858,0.14033567,46979.0,46978.0,1.43167465]
[1641101869157,0.23316567,46979.0,46972.0,1.43167465]
[1641101869557,0.23316567,46979.0,46973.0,0.09989768]
[1641101869757,0.23316567,46979.0,46973.0,0.10942458]
[1641101869957,0.23316567,46979.0,46973.0,0.09989768]
[1641101870157,0.23316567,46979.0,46974.0,0.09989768]
[1641101870760,0.36284169,46977.0,46973.0,0.09989768]
[1641101870960,0.36284169,46977.0,46971.0,1.43167465]
[1641101871460,0.02128864,46974.0,46972.0,0.10940129]
[1641101871959,0.02128864,46974.0,46973.0,0.09987441]
[1641101872759,0.03108264,46974.0,46973.0,0.09987441]
[1641101872960,0.21108418,46974.0,46972.0,0.09987441]
[1641101873359,0.21108418,46974.0,46970.0,1.45167465]
[1641101873764,0.21108418,46974.0,46970.0,0.02]
[1641101875062,0.14033567,46971.0,46970.0,0.02]
[1641101886587,0.02129018,46974.0,46970.0,0.02]
[1641101887184,0.14033567,46971.0,46970.0,0.02]
[1641101891189,0.14033567,46971.0,46970.0,0.15770893]
[1641101891389,0.23108094,46971.0,46970.0,0.15770893]
[1641101898598,0.09074527,46971.0,46970.0,0.15770893]
[1641101898802,1.59114245,46979.0,46970.0,0.15770893]
[1641101899001,1.59114245,46979.0,46975.0,0.18]
[1641101899400,1.45080678,46983.0,46975.0,0.18]
[1641101899802,0.02128746,46978.0,46975.0,0.18]
[1641101900401,0.02128746,46978.0,46976.0,1.1984089]
[1641101903906,1.59114245,46984.0,46976.0,1.1984089]
[1641101904106,1.59114245,46984.0,46981.0,0.18]
[1641101904308,1.59114245,46984.0,46981.0,0.25859]
[1641101904706,0.14033567,46984.0,46981.0,0.25859]
[1641101905509,0.14033567,46984.0,46981.0,0.07859]
[1641101905709,0.14033567,46984.0,46982.0,1.1984089]
[1641101907109,0.14033567,46984.0,46983.0,0.18]
[1641101909513,0.14033567,46984.0,46982.0,1.1984089]
[1641101909915,0.14033567,46984.0,46983.0,1.1984089]
[1641101910817,0.14033567,46984.0,46983.0,1.3784089]
[1641101911114,0.14033567,46984.0,46983.0,0.18]
[1641101912119,0.14033567,46984.0,46981.0,0.07859]
[1641101912318,0.14033567,46984.0,46983.0,0.18]
[1641101912917,0.14033567,46984.0,46978.0,0.38997723]
[1641101913118,0.14033567,46984.0,46979.0,0.18]
[1641101913318,0.14033567,46984.0,46982.0,0.18]
[1641101913519,0.14033567,46984.0,46979.0,0.08555]
[1641101913721,0.14033567,46984.0,46980.0,0.18]
[1641101913920,0.14033567,46984.0,46977.0,0.18]
[1641101915038,0.14033567,46984.0,46978.0,0.318552]
[1641101915540,0.14033567,46984.0,46978.0,0.56744236]
[1641101916542,0.14033567,46984.0,46980.0,0.53846945]
[1641101916939,0.02128297,46987.0,46980.0,0.60036945]
[1641101917343,0.02128297,46987.0,46981.0,0.35846945]
[1641101917841,0.16161864,46987.0,46981.0,0.35846945]
[1641101919846,0.16161864,46987.0,46982.0,0.18]
[1641101920042,0.16161864,46987.0,46981.0,0.18]
[1641101920244,0.84544192,46983.0,46981.0,0.4292309]
[1641101921347,0.84544192,46983.0,46981.0,0.2492309]
[1641101921545,0.84544192,46983.0,46982.0,0.2492309]
[1641101922146,0.84544192,46983.0,46982.0,0.18]
[1641101922847,0.84544192,46983.0,46981.0,1.56619245]
[1641101923245,0.84544192,46983.0,46982.0,0.18]
[1641101923448,0.84544192,46983.0,46982.0,0.7471299]
[1641101923647,0.84544192,46983.0,46982.0,0.5671299]
[1641101924046,0.60479814,46983.0,46982.0,1.88409145]
[1641101924247,0.60479814,46983.0,46982.0,1.88509145]
[1641101924850,0.60479814,46983.0,46982.0,0.5681299]
[1641101925050,0.60479814,46983.0,46982.0,0.7481299]
[1641101925847,0.60479814,46984.0,46982.0,0.7481299]
[1641101926047,0.60479814,46984.0,46983.0,0.001]
[1641101926450,0.60479814,46984.0,46983.0,0.319973]
[1641101927052,0.36285787,46984.0,46983.0,0.5692039]
[1641101927656,0.36285787,46985.0,46983.0,0.5692039]
[1641101927854,0.36285787,46985.0,46984.0,0.181]
[1641101928160,0.36285787,46985.0,46984.0,0.501731]
[1641101928456,0.36285787,46985.0,46984.0,0.7509619]
[1641101929156,0.36285787,46985.0,46984.0,0.501731]
[1641101933059,0.74513381,46987.0,46985.0,0.06280788]
[1641101933259,0.74513381,46987.0,46986.0,0.001]
[1641101934458,0.74513381,46987.0,46986.0,1.56462942]
[1641101934859,0.74513381,46987.0,46986.0,1.31539852]
[1641101935359,0.74513381,46987.0,46986.0,1.56462942]
[1641101937562,0.14033567,46987.0,46986.0,1.08580528]
[1641101938063,0.14033567,46987.0,46986.0,0.2502309]
[1641101940768,0.14033567,46992.0,46986.0,0.2502309]
[1641101940968,0.60479814,46993.0,46991.0,0.18]
[1641101943874,0.60479814,46993.0,46991.0,0.53800843]
[1641101944677,0.60479814,46993.0,46992.0,0.14033567]
[1641101946177,0.60479814,46993.0,46992.0,0.46052967]
[1641101946776,0.36252244,46993.0,46992.0,0.46052967]
[1641101946979,0.36252244,46993.0,46992.0,0.46152967]
[1641101947677,0.36252244,46997.0,46992.0,1.8995614]
[1641101947891,0.36252244,46997.0,46992.0,1.8985614]
[1641101948491,0.36252244,46997.0,46992.0,1.5783674]
[1641101948692,0.36252244,46997.0,46995.0,0.59580711]
[1641101949497,1.04671918,47000.0,46995.0,0.59580711]
[1641101949699,0.18,46999.0,46995.0,0.59580711]
[1641101949907,0.84544192,46997.0,46994.0,0.35777962]
[1641101950799,0.84544192,46995.0,46992.0,0.49811529]
[1641101951897,0.60420935,46994.0,46992.0,0.49811529]
[1641101953299,0.60420935,46995.0,46993.0,0.35777962]
[1641101953797,0.60420935,46995.0,46994.0,0.35777962]
[1641101957101,0.09070677,47000.0,46992.0,0.14033567]
[1641101957505,1.33061874,46999.0,46993.0,0.24576224]
[1641101959003,1.33061874,46999.0,46998.0,0.49836839]
[1641101961310,1.33061874,47000.0,46998.0,0.49836839]
[1641101962511,1.33061874,47000.0,46999.0,0.35803272]
[1641101964314,1.64060078,47004.0,46998.0,0.14033567]
[1641101964315,1.33061874,47001.0,46998.0,0.73705686]
[1641101965014,1.64060078,47004.0,46998.0,0.73705686]
[1641101965219,1.45080678,47003.0,46998.0,1.09507304]
[1641101965422,1.45080678,47003.0,46998.0,0.49835185]
[1641101965916,1.33006308,47000.0,46999.0,0.35801618]
[1641101966718,1.33006308,46999.0,46998.0,0.49835185]
[1641101967419,1.33006308,47001.0,46998.0,0.14033567]
[1641101969418,1.33006308,47002.0,46998.0,0.14033567]
[1641101971023,1.33006308,47002.0,46998.0,0.49835185]
[1641101974049,1.33006308,47002.0,46998.0,0.35801618]
[1641101974525,0.09070538,47001.0,46997.0,0.35801618]
[1641101975828,0.09070538,47001.0,47000.0,0.14033567]
[1641101978633,1.42076846,47001.0,47000.0,0.14033567]
[1641101980636,0.09070538,47001.0,47000.0,0.14033567]
[1641101982346,0.09070538,47002.0,47000.0,0.14033567]
[1641101984051,1.42076846,47002.0,47000.0,0.14033567]
[1641101985048,0.09070538,47001.0,47000.0,0.14033567]
[1641101989451,1.33001613,47001.0,47000.0,0.14033567]
[1641101990653,1.33001613,47001.0,47000.0,0.49835185]
[1641101991252,1.33001613,47001.0,47000.0,0.49935185]
[1641101991452,1.33001613,47001.0,47000.0,0.14133567]
[1641101991656,1.41842151,47004.0,47000.0,1.18451831]
[1641101991852,1.41842151,47004.0,47003.0,0.001]
[1641101992453,1.41842151,47004.0,47003.0,0.14133567]
[1641101992654,1.41842151,47004.0,47003.0,0.14033567]
[1641101992855,1.33001613,47004.0,47003.0,0.14033567]
[1641101993053,1.33001613,47009.0,47003.0,0.14033567]
[1641101993854,1.33001613,47009.0,47006.0,0.35882099]
[1641101994055,1.33001613,47007.0,47006.0,0.35882099]
[1641101997558,1.33001613,47007.0,47005.0,0.35882099]
[1641101998962,1.33001613,47007.0,47006.0,0.35882099]
[1641102000362,1.33001613,47008.0,47006.0,0.35882099]
[1641102001565,0.18,47007.0,47006.0,0.35882099]
[1641102001763,1.51001613,47008.0,47006.0,0.35882099]
[1641102002065,1.33001613,47008.0,47006.0,0.35882099]
[1641102002373,1.47207964,47010.0,47005.0,0.35882099]
[1641102002571,1.47207964,47010.0,47005.0,0.42503099]
[1641102004067,1.32983052,47007.0,47005.0,0.42503099]
[1641102008673,1.32983052,47007.0,47006.0,0.35882099]
[1641102010769,1.32983052,47007.0,47004.0,0.59803499]
[1641102010970,1.32983052,47009.0,47006.0,0.73761863]
[1641102011570,1.32983052,47009.0,47006.0,0.95647601]
[1641102011770,1.32983052,47008.0,47006.0,0.35844102]
[1641102012571,0.84549347,47007.0,47003.0,0.14033567]
[1641102013175,0.60392621,47005.0,47003.0,0.14033567]
[1641102017181,0.36234992,47004.0,47003.0,0.14033567]
[1641102017982,0.66411621,47005.0,47003.0,0.14033567]
[1641102018384,0.60392621,47004.0,47003.0,0.14033567]
[1641102018987,0.06019,47005.0,47003.0,0.14033567]
[1641102019284,0.09068965,47004.0,47003.0,0.14033567]
[1641102022491,0.93624253,47004.0,47003.0,0.14033567]
[1641102022691,0.95751794,47004.0,47003.0,0.14033567]
[1641102023102,0.09068965,47004.0,47003.0,0.14033567]
[1641102023304,0.15213965,47006.0,47003.0,0.14033567]
[1641102023804,0.8455452,47004.0,47003.0,0.14033567]
[1641102025602,0.09068965,47008.0,47003.0,0.14033567]
[1641102026604,0.18,47006.0,47003.0,0.14033567]
[1641102026808,0.0805,47006.0,47003.0,0.14033567]
[1641102027207,0.09068965,47005.0,47003.0,0.14033567]
[1641102028308,0.27068965,47005.0,47003.0,0.14033567]
[1641102028708,0.21068965,47005.0,47003.0,0.14033567]
[1641102028908,0.27068965,47005.0,47003.0,0.14033567]
[1641102029412,0.09068965,47004.0,47003.0,0.14033567]
[1641102034413,0.09068965,47005.0,47003.0,0.14033567]
[1641102034811,0.21106943,47004.0,47001.0,0.35844102]
[1641102035017,0.28067134,47002.0,46982.0,1.9186]
[1641102035211,0.18,46991.0,46982.0,1.9186]
[1641102035412,0.24305,46991.0,46982.0,1.9186]
[1641102036811,0.33373965,46991.0,46982.0,1.9186]
[1641102037013,0.47407532,46991.0,46981.0,0.14033567]
[1641102037811,0.47407532,46991.0,46976.0,0.14033567]
[1641102037812,0.20128668,46982.0,46976.0,0.14033567]
[1641102038013,0.18,46977.0,46974.0,1.43167465]
[1641102038212,0.24838,46977.0,46974.0,1.43167465]
[1641102038813,0.24838,46977.0,46971.0,0.14033567]
[1641102040421,0.09068965,46976.0,46971.0,0.14033567]
[1641102042318,0.09068965,46976.0,46972.0,0.00953221]
[1641102042516,0.009794,46981.0,46973.0,1.20181274]
[1641102042517,0.10048365,46981.0,46973.0,1.20181274]
[1641102043128,0.10048365,46981.0,46976.0,0.8412314]
[1641102043319,0.84634071,46978.0,46976.0,0.8412314]
[1641102044120,0.84634071,46977.0,46974.0,0.8412314]
[1641102044922,0.84634071,46977.0,46975.0,0.60114006]
[1641102045622,0.84634071,46977.0,46976.0,0.60114006]
[1641102047922,0.84634071,46977.0,46975.0,0.60114006]
[1641102048123,0.02129037,46976.0,46975.0,0.60114006]
[1641102048423,0.02129037,46976.0,46971.0,0.14033567]
[1641102056237,0.14033567,46982.0,46972.0,0.18]
[1641102056238,0.02128701,46979.0,46972.0,0.18]
[1641102056435,0.14033567,46982.0,46972.0,0.18]
[1641102056436,0.14033567,46982.0,46972.0,0.26384]
[1641102056634,0.14033567,46982.0,46972.0,0.08384]
[1641102057536,0.14033567,46982.0,46976.0,0.14033567]
[1641102062144,0.02128738,46978.0,46976.0,0.14033567]
[1641102063345,0.14033567,46982.0,46976.0,0.14033567]
[1641102063545,0.02128331,46987.0,46979.0,0.18]
[1641102063749,0.64250175,46991.0,46980.0,0.18]
[1641102063948,0.30195278,46991.0,46976.0,0.14033567]
[1641102064547,0.30195278,46991.0,46977.0,0.32112]
[1641102065554,0.16161711,46991.0,46983.0,0.14033567]
[1641102065752,0.16161711,46991.0,46983.0,0.23410567]
[1641102072974,0.16161711,46991.0,46983.0,0.14033567]
[1641102074177,1.33001968,46988.0,46986.0,0.8412314]
[1641102074770,1.33001968,46989.0,46987.0,0.93669343]
[1641102075572,1.33001968,46989.0,46987.0,0.8412314]
[1641102075972,0.36232759,46989.0,46983.0,0.14033567]
[1641102081291,0.02128256,46988.0,46983.0,0.14033567]
[1641102082183,0.38361015,46988.0,46983.0,0.14033567]
[1641102082785,0.36232759,46985.0,46983.0,0.14033567]
[1641102082984,0.43085759,46985.0,46983.0,0.14033567]
[1641102088690,0.45214178,46985.0,46983.0,0.14033567]
[1641102088892,0.63214178,46985.0,46983.0,0.14033567]
[1641102089091,0.45214178,46985.0,46983.0,0.14033567]
[1641102090191,0.36232759,46984.0,46983.0,0.14033567]
[1641102090390,0.36232759,46984.0,46977.0,0.36000408]
[1641102091892,0.14033567,46983.0,46977.0,0.36000408]
[1641102093393,0.0911397,46982.0,46981.0,0.36000408]
[1641102095995,0.93657074,46982.0,46981.0,0.36000408]
[1641102096598,0.0911397,46982.0,46981.0,0.36000408]
[1641102096895,0.0911397,46982.0,46979.0,0.96001088]
[1641102097096,0.0911397,46982.0,46979.0,0.36000408]
[1641102097798,0.02128763,46980.0,46979.0,0.36000408]
[1641102098199,0.86750422,46980.0,46978.0,0.36000408]
[1641102098900,0.84621659,46979.0,46977.0,0.96001088]
[1641102099101,0.84621659,46979.0,46977.0,0.36000408]
[1641102101502,0.86750422,46980.0,46978.0,0.36000408]
[1641102103009,0.84621659,46979.0,46978.0,0.36000408]
[1641102107323,0.84621659,46979.0,46977.0,0.36000408]
[1641102108525,0.009794,46978.0,46977.0,0.36000408]
[1641102108724,0.080524,46978.0,46977.0,0.36000408]
[1641102109526,0.080524,46978.0,46976.0,0.36000408]
[1641102109527,1.01851909,46978.0,46976.0,0.36000408]
[1641102110426,0.93799509,46977.0,46976.0,0.36000408]
[1641102111726,0.84621659,46977.0,46976.0,0.36000408]
[1641102111931,0.61405092,46978.0,46974.0,0.36000408]
[1641102112927,0.36255352,46976.0,46974.0,0.36000408]
[1641102119840,0.36255352,46975.0,46973.0,0.36000408]
[1641102120542,0.36255352,46975.0,46971.0,0.69074878]
[1641102120739,0.36255352,46974.0,46973.0,0.6000068]
[1641102127247,0.60425692,46975.0,46973.0,0.69074878]
[1641102128048,0.60425692,46975.0,46974.0,0.36089586]
[1641102128749,0.74459259,46975.0,46974.0,0.36089586]
[1641102128960,0.94588225,46975.0,46970.0,0.01112496]
[1641102129150,0.18,46971.0,46970.0,0.01112496]
[1641102129351,0.23986372,46970.0,46959.0,0.38221831]
[1641102129553,0.23986372,46970.0,46946.0,0.79180823]
[1641102129753,0.02129381,46970.0,46952.0,0.0325]
[1641102129953,0.02129381,46970.0,46962.0,1.9117]
[1641102130251,0.02129381,46970.0,46963.0,1.20181274]
[1641102130458,0.18,46967.0,46963.0,1.20181274]
[1641102130860,0.14033567,46964.0,46963.0,1.20181274]
[1641102131551,0.14033567,46964.0,46958.0,1.9775]
[1641102131552,0.14033567,46964.0,46958.0,3.17931274]
[1641102131754,0.23109567,46964.0,46958.0,1.20181274]
[1641102132451,0.23109567,46964.0,46957.0,1.20181274]
[1641102132853,0.14033567,46964.0,46957.0,1.20181274]
[1641102134053,0.14033567,46964.0,46958.0,1.20181274]
[1641102136355,0.14033567,46964.0,46955.0,0.14033567]
[1641102136356,0.14033567,46964.0,46957.0,1.20181274]
[1641102137158,0.14033567,46964.0,46959.0,1.20181274]
[1641102137657,0.14033567,46964.0,46960.0,0.84446622]
[1641102137956,0.98685542,46964.0,46960.0,0.84446622]
[1641102138862,0.98685542,46964.0,46958.0,1.20181274]
[1641102139071,0.84651975,46961.0,46958.0,1.32246654]
[1641102139460,0.60502697,46959.0,46957.0,1.32246654]
[1641102142961,0.60502697,46959.0,46958.0,1.32246654]
[1641102143764,0.60502697,46959.0,46957.0,1.32246654]
[1641102144563,0.60502697,46959.0,46958.0,1.32246654]
[1641102146788,0.60502697,46960.0,46958.0,1.32246654]
[1641102148882,0.60502697,46959.0,46958.0,1.32246654]
[1641102149484,0.60502697,46960.0,46955.0,1.43167465]
[1641102149884,0.60502697,46960.0,46956.0,0.00954013]
[1641102150584,0.3630046,46958.0,46956.0,0.00954013]
[1641102152288,0.3630046,46959.0,46956.0,0.00954013]
[1641102152691,0.3630046,46965.0,46956.0,0.00954013]
[1641102153286,0.3630046,46965.0,46953.0,0.00954013]
[1641102153486,0.14033567,46962.0,46952.0,0.26180967]
[1641102153786,0.14033567,46962.0,46954.0,0.00954042]
[1641102153988,0.14033567,46962.0,46959.0,0.60285322]
[1641102155988,0.14033567,46962.0,46958.0,0.60285322]
[1641102158092,0.3630046,46967.0,46958.0,0.60285322]
[1641102159694,0.14033567,46962.0,46958.0,0.60285322]
[1641102161103,0.02129737,46959.0,46958.0,0.60285322]
[1641102162100,0.02129737,46959.0,46952.0,0.74318889]
[1641102167708,0.02129737,46959.0,46952.0,0.60285322]
[1641102171107,0.02129737,46959.0,46951.0,0.84394919]
[1641102171108,0.02129737,46959.0,46951.0,0.60285322]
[1641102171806,0.02129737,46959.0,46951.0,0.78285322]
[1641102172008,0.02129737,46959.0,46951.0,0.60285322]
[1641102172707,0.02129737,46959.0,46951.0,0.78285322]
[1641102173915,0.02129737,46959.0,46951.0,0.60285322]
[1641102174413,0.3630046,46957.0,46956.0,0.60285322]
[1641102179917,0.60502697,46958.0,46956.0,0.60285322]
[1641102181418,0.60502697,46957.0,46954.0,0.60285322]
[1641102182318,0.60502697,46955.0,46953.0,0.60285322]
[1641102184818,0.36281891,46954.0,46953.0,0.60285322]
[1641102185019,0.65424872,46954.0,46953.0,0.60285322]
[1641102185420,1.77124872,46954.0,46953.0,0.23591148]
[1641102185618,1.40842981,46954.0,46953.0,0.23591148]
[1641102185819,2.01345678,46954.0,46952.0,0.23591148]
[1641102186622,0.02130219,46953.0,46950.0,0.84394919]
[1641102186824,0.18,46951.0,46947.0,0.98428486]
[1641102187723,0.09975912,46950.0,46947.0,0.98428486]
[1641102187923,0.09975912,46950.0,46947.0,0.14033567]
[1641102188523,0.36266279,46948.0,46947.0,0.14033567]
[1641102189623,0.18,46951.0,46947.0,0.14033567]
[1641102192526,0.18,46951.0,46943.0,0.84394919]
[1641102193126,0.18,46951.0,46944.0,0.00954727]
[1641102195442,0.18,46951.0,46943.0,0.98428486]
[1641102195641,0.18,46951.0,46945.0,0.60434174]
[1641102197243,0.14033567,46946.0,46945.0,0.60434174]
[1641102197943,0.14033567,46946.0,46941.0,1.2056973]
[1641102197944,0.14033567,46946.0,46943.0,1.2056973]
[1641102199447,0.14033567,46946.0,46941.0,1.2056973]
[1641102200748,0.14033567,46946.0,46940.0,1.3856973]
[1641102201549,0.14033567,46946.0,46940.0,1.2056973]
[1641102201950,0.14033567,46946.0,46940.0,1.3856973]
[1641102202350,0.14033567,46946.0,46940.0,1.2056973]
[1641102204952,0.14033567,46946.0,46940.0,1.3856973]
[1641102205352,0.14033567,46946.0,46940.0,1.2056973]
[1641102205753,0.14033567,46946.0,46940.0,1.3856973]
[1641102205954,0.14033567,46946.0,46940.0,1.4540873]
[1641102209061,0.14033567,46946.0,46940.0,1.2740873]
[1641102209260,0.14033567,46946.0,46940.0,1.2056973]
[1641102211363,0.50299846,46946.0,46940.0,1.2056973]
[1641102212963,0.50299846,46946.0,46943.0,0.60466317]
[1641102213465,0.14033567,46946.0,46943.0,0.60466317]
[1641102215269,0.14033567,46946.0,46942.0,0.84652844]
[1641102215468,0.10166389,46945.0,46942.0,0.84652844]
[1641102215668,0.60431285,46944.0,46943.0,1.2056973]
[1641102215869,1.33001968,46951.0,46943.0,1.2056973]
[1641102216269,1.33001968,46951.0,46942.0,0.18]
[1641102216469,0.36272963,46944.0,46941.0,1.33597751]
[1641102216672,0.36272963,46944.0,46943.0,0.1895556]
[1641102217381,0.36272963,46944.0,46943.0,0.32989127]
[1641102217574,0.36272963,46946.0,46943.0,1.65707478]
[1641102217773,0.36272963,46946.0,46945.0,0.181]
[1641102217975,0.36272963,46946.0,46945.0,0.001]
[1641102218175,0.36272963,46946.0,46945.0,0.181]
[1641102218376,0.36272963,46947.0,46945.0,0.001]
[1641102218674,0.36272963,46947.0,46944.0,1.32618351]
[1641102219278,0.36272963,46947.0,46946.0,0.18]
[1641102219678,0.36272963,46947.0,46944.0,1.32618351]
[1641102220085,0.36272963,46947.0,46946.0,0.001]
[1641102222013,0.36272963,46948.0,46946.0,0.001]
[1641102222194,0.36272963,46948.0,46947.0,0.181]
[1641102222394,0.36272963,46948.0,46947.0,0.2571]
[1641102222601,0.36272963,46948.0,46947.0,0.0771]
[1641102222803,0.36272963,46948.0,46947.0,0.2571]
[1641102222995,0.36272963,46948.0,46947.0,0.0771]
[1641102223499,0.36272963,46948.0,46947.0,0.2571]
[1641102224098,0.36272963,46948.0,46947.0,0.0771]
[1641102224298,0.36272963,46948.0,46947.0,0.001]
[1641102224901,0.36272963,46948.0,46947.0,0.181]
[1641102225100,0.36272963,46948.0,46947.0,0.001]
[1641102225600,0.36272963,46948.0,46947.0,0.181]
[1641102225999,0.36272963,46948.0,46947.0,0.2615]
[1641102228302,0.36272963,46948.0,46947.0,0.0815]
[1641102228502,0.36272963,46948.0,46947.0,0.2615]
[1641102228702,0.36272963,46948.0,46947.0,0.0815]
[1641102228904,0.36272963,46948.0,46947.0,0.001]
[1641102230805,0.36272963,46948.0,46947.0,0.181]
[1641102231005,0.36272963,46948.0,46947.0,0.001]
[1641102231706,0.36272963,46948.0,46947.0,0.181]
[1641102231906,0.36272963,46948.0,46947.0,0.001]
[1641102233811,0.36272963,46949.0,46947.0,0.001]
[1641102234011,0.36272963,46949.0,46944.0,1.32618351]
[1641102234012,0.36272963,46949.0,46948.0,0.001]
[1641102234512,0.36272963,46949.0,46948.0,1.21056362]
[1641102236216,0.36272963,46949.0,46948.0,1.20956362]
[1641102236413,0.52436582,46949.0,46948.0,1.20956362]
[1641102237214,0.16163619,46949.0,46948.0,1.20956362]
[1641102237414,0.2430527,46949.0,46948.0,1.20956362]
[1641102237618,0.2430527,46949.0,46946.0,0.60495995]
[1641102237815,0.3184627,46949.0,46946.0,0.60495995]
[1641102238416,0.02130205,46947.0,46946.0,0.60495995]
[1641102238818,0.02130205,46947.0,46945.0,0.60495995]
[1641102239821,0.02130205,46947.0,46943.0,0.84694393]
[1641102239822,0.94841283,46946.0,46943.0,0.60495995]
[1641102241119,0.60485523,46945.0,46943.0,0.60495995]
[1641102241519,0.60485523,46944.0,46943.0,0.60495995]
[1641102242921,0.60485523,46945.0,46943.0,0.60495995]
[1641102245224,0.36290297,46944.0,46942.0,0.84694393]
[1641102246326,0.36290297,46944.0,46943.0,0.84694393]
[1641102246924,0.60485523,46946.0,46943.0,0.84694393]
[1641102247132,0.60485523,46944.0,46941.0,0.91369393]
[1641102247733,0.36290951,46943.0,46941.0,0.91369393]
[1641102250330,0.36290951,46943.0,46942.0,0.18]
[1641102250729,0.36290951,46943.0,46942.0,0.06]
[1641102250935,0.36290951,46943.0,46941.0,0.91369393]
[1641102251138,0.36290951,46944.0,46942.0,0.84694393]
[1641102252532,0.36290951,46944.0,46943.0,0.84694393]
[1641102254232,0.38421259,46944.0,46942.0,0.84694393]
[1641102255032,0.36290951,46943.0,46942.0,0.84694393]
[1641102256836,0.02130308,46944.0,46941.0,0.84694393]
[1641102257336,0.02130308,46944.0,46941.0,1.02694393]
[1641102259435,0.36290951,46945.0,46943.0,0.18]
[1641102259636,0.36290951,46945.0,46944.0,0.18]
[1641102260239,0.36290951,46946.0,46944.0,0.18]
[1641102261136,0.36290951,46946.0,46945.0,0.001]
[1641102261337,0.36290951,46948.0,46945.0,0.25519]
[1641102261537,0.36290951,46948.0,46947.0,0.001]
[1641102262139,0.36290951,46950.0,46947.0,0.60216896]
[1641102262339,0.36290951,46950.0,46949.0,0.001]